[Event "Titled Tuesday Blitz March 14 Late 2023"]
[White "Paravyan, David"]
[Black "Christiansen, Johan-Sebastian"]
[WhiteFideId "4194985"]
[BlackFideId "1512668"]
[WhiteElo "2577"]
[BlackElo "2517"]
[Result "1/2-1/2"]
[Round "08"]
[TimeControl "180+2"]
[Date "2023.03.14"]
[WhiteClock "0:00:05"]
[BlackClock "0:00:03"]

1. e4 {[%clk 0:03:00]}  e5 {[%clk 0:03:00]} 2. Nf3 {[%clk 0:03:01]}  Nc6 {[%clk 0:03:00]} 3. Bb5 {[%clk 0:03:01]}  f5 {[%clk 0:03:01]} 4. d3 {[%clk 0:03:00]}  Nf6 {[%clk 0:03:01]} 5. O-O {[%clk 0:03:00]}  fxe4 {[%clk 0:03:01]} 6. dxe4 {[%clk 0:03:01]}  Bc5 {[%clk 0:03:01]} 7. Bxc6 {[%clk 0:02:58]}  bxc6 {[%clk 0:03:02]} 8. Nxe5 {[%clk 0:02:58]}  O-O {[%clk 0:03:03]} 9. Nc3 {[%clk 0:02:59]}  d6 {[%clk 0:03:03]} 10. Na4 {[%clk 0:02:58]}  Qe8 {[%clk 0:02:55]} 11. Nd3 {[%clk 0:02:54]}  Bg4 {[%clk 0:02:54]} 12. Qe1 {[%clk 0:02:54]}  Bd4 {[%clk 0:02:53]} 13. c3 {[%clk 0:02:54]}  Bb6 {[%clk 0:02:53]} 14. Nxb6 {[%clk 0:02:53]}  axb6 {[%clk 0:02:54]} 15. f3 {[%clk 0:02:53]}  Be6 {[%clk 0:02:55]} 16. Bg5 {[%clk 0:02:48]}  Bxa2 {[%clk 0:02:47]} 17. Bxf6 {[%clk 0:02:45]}  Rxf6 {[%clk 0:02:46]} 18. Qe3 {[%clk 0:02:37]}  Bc4 {[%clk 0:02:45]} 19. Rxa8 {[%clk 0:02:36]}  Qxa8 {[%clk 0:02:46]} 20. Re1 {[%clk 0:02:36]}  Qa2 {[%clk 0:02:26]} 21. e5 {[%clk 0:02:14]}  Re6 {[%clk 0:02:25]} 22. f4 {[%clk 0:02:15]}  dxe5 {[%clk 0:01:14]} 23. Nxe5 {[%clk 0:02:11]}  Qxb2 {[%clk 0:01:09]} 24. h3 {[%clk 0:02:06]}  Bd5 {[%clk 0:00:48]} 25. Re2 {[%clk 0:02:06]}  Qb1+ {[%clk 0:00:47]} 26. Kh2 {[%clk 0:02:06]}  Qf5 {[%clk 0:00:37]} 27. Qd4 {[%clk 0:02:01]}  b5 {[%clk 0:00:36]} 28. Rf2 {[%clk 0:01:45]}  Rf6 {[%clk 0:00:31]} 29. c4 {[%clk 0:01:24]}  bxc4 {[%clk 0:00:31]} 30. Ng4 {[%clk 0:01:18]}  Re6 {[%clk 0:00:28]} 31. Rb2 {[%clk 0:01:18]}  h5 {[%clk 0:00:25]} 32. Ne5 {[%clk 0:01:10]}  c3 {[%clk 0:00:22]} 33. Re2 {[%clk 0:00:40]}  c2 {[%clk 0:00:22]} 34. Qd2 {[%clk 0:00:35]}  h4 {[%clk 0:00:12]} 35. Qc1 {[%clk 0:00:29]}  Rf6 {[%clk 0:00:12]} 36. Rxc2 {[%clk 0:00:22]}  Qxf4+ {[%clk 0:00:05]} 37. Qxf4 {[%clk 0:00:23]}  Rxf4 {[%clk 0:00:05]} 38. Nxc6 {[%clk 0:00:24]}  Rc4 {[%clk 0:00:02]} 39. Rxc4 {[%clk 0:00:10]}  Bxc4 {[%clk 0:00:03]} 40. g3 {[%clk 0:00:11]}  hxg3+ {[%clk 0:00:03]} 41. Kxg3 {[%clk 0:00:11]}  Kf8 {[%clk 0:00:04]} 42. Kf4 {[%clk 0:00:12]}  Bd5 {[%clk 0:00:04]} 43. Ne5 {[%clk 0:00:11]}  Be6 {[%clk 0:00:05]} 44. h4 {[%clk 0:00:11]}  c5 {[%clk 0:00:05]} 45. Ke4 {[%clk 0:00:04]}  Ke7 {[%clk 0:00:06]} 46. Nf3 {[%clk 0:00:04]}  Kf6 {[%clk 0:00:06]} 47. Ng5 {[%clk 0:00:04]}  Ba2 {[%clk 0:00:06]} 48. Kf4 {[%clk 0:00:02]}  Kg6 {[%clk 0:00:06]} 49. Ne4 {[%clk 0:00:02]}  c4 {[%clk 0:00:05]} 50. Nc3 {[%clk 0:00:03]}  Bb3 {[%clk 0:00:05]} 51. Kg4 {[%clk 0:00:03]}  Kf6 {[%clk 0:00:05]} 52. Kf4 {[%clk 0:00:03]}  Bc2 {[%clk 0:00:03]} 53. h5 {[%clk 0:00:03]}  Bd3 {[%clk 0:00:03]} 54. Nd5+ {[%clk 0:00:03]}  Ke6 {[%clk 0:00:03]} 55. Nc3 {[%clk 0:00:04]}  Kf7 {[%clk 0:00:03]} 56. Kg5 {[%clk 0:00:04]}  Ke6 {[%clk 0:00:03]} 57. Kf4 {[%clk 0:00:04]}  Kf6 {[%clk 0:00:03]} 58. Nd5+ {[%clk 0:00:04]}  Ke6 {[%clk 0:00:03]} 59. Nc3 {[%clk 0:00:05]} 1/2-1/2


[Site "https://www.chess.com"]

[Event "Titled Tuesday Blitz March 14 Late 2023"]
[White "Sarana, Alexey"]
[Black "Mahdavi, Reza"]
[WhiteFideId "24133795"]
[BlackFideId "12595926"]
[WhiteElo "2714"]
[BlackElo "2208"]
[Result "1-0"]
[Round "08"]
[TimeControl "180+2"]
[Date "2023.03.14"]
[WhiteClock "0:00:05"]
[BlackClock "0:00:01"]

1. c4 {[%clk 0:03:00]}  e5 {[%clk 0:02:59]} 2. Nc3 {[%clk 0:03:01]}  Bb4 {[%clk 0:02:55]} 3. Nd5 {[%clk 0:03:00]}  a5 {[%clk 0:02:52]} 4. Nf3 {[%clk 0:02:58]}  d6 {[%clk 0:02:47]} 5. e3 {[%clk 0:02:54]}  Nf6 {[%clk 0:02:43]} 6. Nxb4 {[%clk 0:02:48]}  axb4 {[%clk 0:02:42]} 7. d4 {[%clk 0:02:49]}  Qe7 {[%clk 0:02:39]} 8. Be2 {[%clk 0:02:48]}  O-O {[%clk 0:02:38]} 9. b3 {[%clk 0:02:48]}  Bg4 {[%clk 0:02:34]} 10. O-O {[%clk 0:02:38]}  c5 {[%clk 0:02:20]} 11. Bb2 {[%clk 0:02:29]}  Bxf3 {[%clk 0:02:17]} 12. Bxf3 {[%clk 0:02:29]}  Nc6 {[%clk 0:02:17]} 13. Bxc6 {[%clk 0:02:15]}  bxc6 {[%clk 0:02:18]} 14. Qf3 {[%clk 0:02:13]}  e4 {[%clk 0:02:12]} 15. Qf5 {[%clk 0:02:14]}  Qe6 {[%clk 0:02:01]} 16. Qxe6 {[%clk 0:02:08]}  fxe6 {[%clk 0:02:01]} 17. dxc5 {[%clk 0:02:09]}  dxc5 {[%clk 0:02:02]} 18. Rfd1 {[%clk 0:02:09]}  Rfd8 {[%clk 0:02:01]} 19. a4 {[%clk 0:01:33]}  bxa3 {[%clk 0:01:36]} 20. Rxd8+ {[%clk 0:01:31]}  Rxd8 {[%clk 0:01:37]} 21. Bxa3 {[%clk 0:01:29]}  Rb8 {[%clk 0:01:37]} 22. Bxc5 {[%clk 0:01:24]}  Rxb3 {[%clk 0:01:34]} 23. Bd4 {[%clk 0:01:25]}  Nd7 {[%clk 0:01:19]} 24. Rd1 {[%clk 0:01:23]}  e5 {[%clk 0:01:15]} 25. Ba1 {[%clk 0:01:23]}  Rd3 {[%clk 0:01:13]} 26. Rb1 {[%clk 0:01:14]}  Nb6 {[%clk 0:01:07]} 27. Bxe5 {[%clk 0:01:07]}  Nxc4 {[%clk 0:01:07]} 28. Bd4 {[%clk 0:01:07]}  Na3 {[%clk 0:00:53]} 29. Rb8+ {[%clk 0:01:05]}  Kf7 {[%clk 0:00:53]} 30. g4 {[%clk 0:01:06]}  Nb5 {[%clk 0:00:46]} 31. Rb7+ {[%clk 0:01:05]}  Ke6 {[%clk 0:00:47]} 32. Bxg7 {[%clk 0:01:02]}  Nd6 {[%clk 0:00:45]} 33. Ra7 {[%clk 0:00:41]}  c5 {[%clk 0:00:41]} 34. h4 {[%clk 0:00:41]}  c4 {[%clk 0:00:41]} 35. Ra5 {[%clk 0:00:35]}  Rd5 {[%clk 0:00:34]} 36. Ra6 {[%clk 0:00:20]}  Rd3 {[%clk 0:00:21]} 37. Kf1 {[%clk 0:00:19]}  Kd5 {[%clk 0:00:19]} 38. Ra5+ {[%clk 0:00:14]}  Kc6 {[%clk 0:00:19]} 39. Ra1 {[%clk 0:00:06]}  c3 {[%clk 0:00:19]} 40. h5 {[%clk 0:00:06]}  Nc4 {[%clk 0:00:04]} 41. Rc1 {[%clk 0:00:05]}  Nd2+ {[%clk 0:00:04]} 42. Kg2 {[%clk 0:00:04]}  Kd5 {[%clk 0:00:02]} 43. Rxc3 {[%clk 0:00:04]}  Rxc3 {[%clk 0:00:03]} 44. Bxc3 {[%clk 0:00:04]}  Nf3 {[%clk 0:00:03]} 45. Kg3 {[%clk 0:00:04]}  Ng5 {[%clk 0:00:02]} 46. Bf6 {[%clk 0:00:04]}  Ne6 {[%clk 0:00:01]} 47. g5 {[%clk 0:00:04]}  Nc5 {[%clk 0:00:01]} 48. Bd4 {[%clk 0:00:04]}  Ne6 {[%clk 0:00:01]} 49. Bf6 {[%clk 0:00:04]}  Nc5 {[%clk 0:00:01]} 50. g6 {[%clk 0:00:05]}  Ke6 {[%clk 0:00:01]} 51. gxh7 {[%clk 0:00:05]} 1-0


[Site "https://www.chess.com"]

[Event "Titled Tuesday Blitz March 14 Late 2023"]
[White "Larino Nieto, David"]
[Black "Pranav, V"]
[WhiteFideId "2256444"]
[BlackFideId "25060783"]
[WhiteElo "2506"]
[BlackElo "2500"]
[Result "0-1"]
[Round "08"]
[TimeControl "180+2"]
[Date "2023.03.14"]
[WhiteClock "0:00:02"]
[BlackClock "0:00:48"]

1. e4 {[%clk 0:03:00]}  e5 {[%clk 0:02:58]} 2. Nf3 {[%clk 0:03:00]}  Nc6 {[%clk 0:02:58]} 3. Nc3 {[%clk 0:03:00]}  Nf6 {[%clk 0:02:58]} 4. g3 {[%clk 0:03:00]}  Bb4 {[%clk 0:02:56]} 5. Bg2 {[%clk 0:03:00]}  Bxc3 {[%clk 0:02:56]} 6. bxc3 {[%clk 0:02:57]}  d6 {[%clk 0:02:55]} 7. d3 {[%clk 0:02:57]}  O-O {[%clk 0:02:53]} 8. O-O {[%clk 0:02:56]}  h6 {[%clk 0:02:53]} 9. h3 {[%clk 0:02:53]}  Re8 {[%clk 0:02:51]} 10. c4 {[%clk 0:02:53]}  Ne7 {[%clk 0:02:49]} 11. Nh4 {[%clk 0:02:52]}  c6 {[%clk 0:02:39]} 12. f4 {[%clk 0:02:43]}  exf4 {[%clk 0:02:32]} 13. Bxf4 {[%clk 0:02:30]}  Nh7 {[%clk 0:02:30]} 14. Qh5 {[%clk 0:02:26]}  Nf6 {[%clk 0:02:27]} 15. Qf3 {[%clk 0:02:24]}  Nh7 {[%clk 0:02:17]} 16. Bxd6 {[%clk 0:02:10]}  Ng5 {[%clk 0:02:15]} 17. Qf4 {[%clk 0:02:07]}  Bxh3 {[%clk 0:02:15]} 18. c5 {[%clk 0:01:47]}  Qd7 {[%clk 0:02:08]} 19. Rf2 {[%clk 0:01:04]}  f6 {[%clk 0:01:54]} 20. Bh1 {[%clk 0:00:57]}  b6 {[%clk 0:01:54]} 21. d4 {[%clk 0:00:45]}  bxc5 {[%clk 0:01:53]} 22. dxc5 {[%clk 0:00:46]}  Qe6 {[%clk 0:01:53]} 23. e5 {[%clk 0:00:44]}  Nd5 {[%clk 0:01:44]} 24. Bxd5 {[%clk 0:00:43]}  Qxd5 {[%clk 0:01:45]} 25. exf6 {[%clk 0:00:41]}  Be6 {[%clk 0:01:45]} 26. Kh2 {[%clk 0:00:32]}  Ne4 {[%clk 0:01:23]} 27. Raf1 {[%clk 0:00:17]}  Nxf6 {[%clk 0:01:17]} 28. Nf5 {[%clk 0:00:07]}  Bxf5 {[%clk 0:01:03]} 29. Qxf5 {[%clk 0:00:08]}  Qxf5 {[%clk 0:00:51]} 30. Rxf5 {[%clk 0:00:09]}  Ng4+ {[%clk 0:00:52]} 31. Kh3 {[%clk 0:00:08]}  Ne3 {[%clk 0:00:52]} 32. g4 {[%clk 0:00:02]}  Nxf1 {[%clk 0:00:52]} 33. Rxf1 {[%clk 0:00:03]}  Re2 {[%clk 0:00:51]} 34. g5 {[%clk 0:00:03]}  hxg5 {[%clk 0:00:50]} 35. Kg4 {[%clk 0:00:03]}  Rxc2 {[%clk 0:00:50]} 36. Kh5 {[%clk 0:00:03]}  Re8 {[%clk 0:00:48]} 37. Kg6 {[%clk 0:00:03]}  Re6+ {[%clk 0:00:48]} 38. Kxg5 {[%clk 0:00:02]}  Rg2+ {[%clk 0:00:48]} 0-1


[Site "https://www.chess.com"]

[Event "Titled Tuesday Blitz March 14 Late 2023"]
[White "Van Foreest, Jorden"]
[Black "Cardoso Cardoso, Jose Gabriel"]
[WhiteFideId "1039784"]
[BlackFideId "4430492"]
[WhiteElo "2633"]
[BlackElo "2496"]
[Result "1-0"]
[Round "08"]
[TimeControl "180+2"]
[Date "2023.03.14"]
[WhiteClock "0:00:32"]
[BlackClock "0:00:01"]

1. e4 {[%clk 0:02:55]}  c5 {[%clk 0:02:59]} 2. Nf3 {[%clk 0:02:55]}  e6 {[%clk 0:03:00]} 3. c3 {[%clk 0:02:55]}  d5 {[%clk 0:02:57]} 4. exd5 {[%clk 0:02:55]}  Qxd5 {[%clk 0:02:58]} 5. d4 {[%clk 0:02:56]}  Nf6 {[%clk 0:02:59]} 6. Be3 {[%clk 0:02:54]}  cxd4 {[%clk 0:02:58]} 7. cxd4 {[%clk 0:02:54]}  Bb4+ {[%clk 0:02:58]} 8. Nc3 {[%clk 0:02:53]}  Qa5 {[%clk 0:02:59]} 9. Qd2 {[%clk 0:02:45]}  Ne4 {[%clk 0:02:53]} 10. Qc2 {[%clk 0:02:46]}  Nxc3 {[%clk 0:02:48]} 11. Bd2 {[%clk 0:02:46]}  O-O {[%clk 0:02:06]} 12. bxc3 {[%clk 0:02:45]}  Be7 {[%clk 0:02:04]} 13. Bd3 {[%clk 0:02:45]}  h6 {[%clk 0:02:01]} 14. Qc1 {[%clk 0:02:41]}  Qa3 {[%clk 0:01:47]} 15. Bxh6 {[%clk 0:02:39]}  gxh6 {[%clk 0:01:46]} 16. Qxh6 {[%clk 0:02:38]}  Qxc3+ {[%clk 0:01:46]} 17. Ke2 {[%clk 0:02:39]}  f5 {[%clk 0:01:36]} 18. Rac1 {[%clk 0:02:37]}  Qb2+ {[%clk 0:01:23]} 19. Rc2 {[%clk 0:02:36]}  Qb6 {[%clk 0:01:23]} 20. Qg6+ {[%clk 0:02:33]}  Kh8 {[%clk 0:01:23]} 21. h4 {[%clk 0:02:31]}  e5 {[%clk 0:00:58]} 22. Qh5+ {[%clk 0:02:27]}  Kg7 {[%clk 0:00:57]} 23. Rh3 {[%clk 0:02:23]}  Qh6 {[%clk 0:00:49]} 24. Rg3+ {[%clk 0:02:10]}  Kh7 {[%clk 0:00:49]} 25. Qxh6+ {[%clk 0:01:34]}  Kxh6 {[%clk 0:00:50]} 26. Nxe5 {[%clk 0:01:34]}  Nc6 {[%clk 0:00:19]} 27. Nxc6 {[%clk 0:01:24]}  bxc6 {[%clk 0:00:20]} 28. Rxc6+ {[%clk 0:01:24]}  Rf6 {[%clk 0:00:19]} 29. Rc7 {[%clk 0:01:24]}  Bd6 {[%clk 0:00:18]} 30. Rc6 {[%clk 0:01:24]}  Bb7 {[%clk 0:00:16]} 31. Rxd6 {[%clk 0:01:05]}  Rxd6 {[%clk 0:00:17]} 32. Re3 {[%clk 0:01:06]}  Be4 {[%clk 0:00:12]} 33. Bxe4 {[%clk 0:01:04]}  fxe4 {[%clk 0:00:13]} 34. Rxe4 {[%clk 0:01:04]}  Rb8 {[%clk 0:00:12]} 35. f4 {[%clk 0:01:02]}  Rb2+ {[%clk 0:00:10]} 36. Kf3 {[%clk 0:01:02]}  Rxa2 {[%clk 0:00:10]} 37. Re3 {[%clk 0:00:56]}  Rxd4 {[%clk 0:00:08]} 38. Re6+ {[%clk 0:00:56]}  Kg7 {[%clk 0:00:08]} 39. h5 {[%clk 0:00:48]}  Raa4 {[%clk 0:00:06]} 40. g3 {[%clk 0:00:47]}  Ra3+ {[%clk 0:00:06]} 41. Kg4 {[%clk 0:00:45]}  Rdd3 {[%clk 0:00:06]} 42. Rg6+ {[%clk 0:00:46]}  Kh7 {[%clk 0:00:05]} 43. Kh4 {[%clk 0:00:46]}  a5 {[%clk 0:00:05]} 44. g4 {[%clk 0:00:46]}  Rh3+ {[%clk 0:00:03]} 45. Kg5 {[%clk 0:00:46]}  Rab3 {[%clk 0:00:03]} 46. Rh6+ {[%clk 0:00:46]}  Kg7 {[%clk 0:00:03]} 47. Rg6+ {[%clk 0:00:46]}  Kf7 {[%clk 0:00:04]} 48. Rf6+ {[%clk 0:00:47]}  Ke7 {[%clk 0:00:05]} 49. Ra6 {[%clk 0:00:48]}  Rb5+ {[%clk 0:00:04]} 50. f5 {[%clk 0:00:48]}  Rg3 {[%clk 0:00:04]} 51. Ra7+ {[%clk 0:00:47]}  Kf8 {[%clk 0:00:03]} 52. h6 {[%clk 0:00:45]}  Rb4 {[%clk 0:00:03]} 53. Kf6 {[%clk 0:00:40]}  Rb6+ {[%clk 0:00:03]} 54. Kg5 {[%clk 0:00:41]}  Rb4 {[%clk 0:00:01]} 55. h7 {[%clk 0:00:32]}  Rbxg4+ {[%clk 0:00:01]} 56. Kf6 {[%clk 0:00:33]}  Ke8 {[%clk 0:00:01]} 57. h8=Q+ {[%clk 0:00:32]} 1-0


[Site "https://www.chess.com"]

[Event "Titled Tuesday Blitz March 14 Late 2023"]
[White "Lenderman, Aleksandr"]
[Black "Mirzoev, Azer"]
[WhiteFideId "2021285"]
[BlackFideId "13400304"]
[WhiteElo "2607"]
[BlackElo "2525"]
[Result "0-1"]
[Round "08"]
[TimeControl "180+2"]
[Date "2023.03.14"]
[WhiteClock "0:00:12"]
[BlackClock "0:00:13"]

1. Nf3 {[%clk 0:03:00]}  d5 {[%clk 0:03:00]} 2. e3 {[%clk 0:02:58]}  Nf6 {[%clk 0:02:59]} 3. c4 {[%clk 0:02:59]}  c6 {[%clk 0:02:58]} 4. Nc3 {[%clk 0:02:52]}  a6 {[%clk 0:02:57]} 5. Qc2 {[%clk 0:02:49]}  Bg4 {[%clk 0:02:52]} 6. Ne5 {[%clk 0:02:46]}  Bh5 {[%clk 0:02:52]} 7. cxd5 {[%clk 0:02:43]}  cxd5 {[%clk 0:02:51]} 8. Qb3 {[%clk 0:02:43]}  Ra7 {[%clk 0:02:48]} 9. d4 {[%clk 0:02:39]}  e6 {[%clk 0:02:46]} 10. Bd2 {[%clk 0:02:39]}  Nbd7 {[%clk 0:02:44]} 11. Nd3 {[%clk 0:02:39]}  Be7 {[%clk 0:02:42]} 12. Be2 {[%clk 0:02:38]}  Bxe2 {[%clk 0:02:40]} 13. Nxe2 {[%clk 0:02:39]}  O-O {[%clk 0:02:38]} 14. O-O {[%clk 0:02:38]}  Ne4 {[%clk 0:02:38]} 15. Bb4 {[%clk 0:02:36]}  Bxb4 {[%clk 0:02:34]} 16. Qxb4 {[%clk 0:02:37]}  Qb6 {[%clk 0:02:25]} 17. Qxb6 {[%clk 0:02:36]}  Nxb6 {[%clk 0:02:24]} 18. Rfc1 {[%clk 0:02:37]}  Raa8 {[%clk 0:02:19]} 19. Rc7 {[%clk 0:02:35]}  Rab8 {[%clk 0:02:17]} 20. f3 {[%clk 0:02:18]}  Nd6 {[%clk 0:02:13]} 21. Rac1 {[%clk 0:02:18]}  Rfc8 {[%clk 0:02:01]} 22. R7c5 {[%clk 0:02:18]}  Kf8 {[%clk 0:01:48]} 23. b3 {[%clk 0:02:13]}  Ke8 {[%clk 0:01:47]} 24. a4 {[%clk 0:02:13]}  Nd7 {[%clk 0:01:44]} 25. Rxc8+ {[%clk 0:02:00]}  Rxc8 {[%clk 0:01:45]} 26. Rxc8+ {[%clk 0:02:00]}  Nxc8 {[%clk 0:01:45]} 27. Kf2 {[%clk 0:02:00]}  Nd6 {[%clk 0:01:42]} 28. Nc5 {[%clk 0:01:58]}  a5 {[%clk 0:01:35]} 29. Nf4 {[%clk 0:01:44]}  b6 {[%clk 0:01:26]} 30. Ncd3 {[%clk 0:01:39]}  Ke7 {[%clk 0:01:21]} 31. Ke2 {[%clk 0:01:39]}  g5 {[%clk 0:01:09]} 32. Nh5 {[%clk 0:01:38]}  f5 {[%clk 0:01:06]} 33. h3 {[%clk 0:01:26]}  h6 {[%clk 0:00:59]} 34. g4 {[%clk 0:01:04]}  Nf6 {[%clk 0:00:53]} 35. Ne5 {[%clk 0:01:01]}  Nxh5 {[%clk 0:00:50]} 36. gxh5 {[%clk 0:00:50]}  Nf7 {[%clk 0:00:50]} 37. Nc6+ {[%clk 0:00:44]}  Kd6 {[%clk 0:00:48]} 38. Na7 {[%clk 0:00:44]}  Nd8 {[%clk 0:00:41]} 39. Nb5+ {[%clk 0:00:45]}  Kd7 {[%clk 0:00:40]} 40. Kd3 {[%clk 0:00:30]}  Nf7 {[%clk 0:00:38]} 41. e4 {[%clk 0:00:24]}  Nd6 {[%clk 0:00:31]} 42. exd5 {[%clk 0:00:21]}  exd5 {[%clk 0:00:28]} 43. Nc3 {[%clk 0:00:21]}  Ke6 {[%clk 0:00:28]} 44. Ke3 {[%clk 0:00:16]}  Ne8 {[%clk 0:00:27]} 45. Nb5 {[%clk 0:00:11]}  Nf6 {[%clk 0:00:24]} 46. Nc7+ {[%clk 0:00:12]}  Kd6 {[%clk 0:00:24]} 47. Nb5+ {[%clk 0:00:12]}  Kd7 {[%clk 0:00:24]} 48. Nc3 {[%clk 0:00:12]}  Ke6 {[%clk 0:00:23]} 49. f4 {[%clk 0:00:13]}  Nxh5 {[%clk 0:00:22]} 50. fxg5 {[%clk 0:00:13]}  hxg5 {[%clk 0:00:22]} 51. Kf3 {[%clk 0:00:14]}  Nf6 {[%clk 0:00:21]} 52. Nb5 {[%clk 0:00:14]}  Ne4 {[%clk 0:00:20]} 53. Nc7+ {[%clk 0:00:14]}  Kd6 {[%clk 0:00:20]} 54. Ne8+ {[%clk 0:00:14]}  Kd7 {[%clk 0:00:18]} 55. Ng7 {[%clk 0:00:14]}  Nd6 {[%clk 0:00:16]} 56. Kg3 {[%clk 0:00:14]}  Ke7 {[%clk 0:00:16]} 57. Kf3 {[%clk 0:00:12]}  Kf7 {[%clk 0:00:14]} 58. Nh5 {[%clk 0:00:12]}  Ne4 {[%clk 0:00:13]} 0-1


[Site "https://www.chess.com"]

[Event "Titled Tuesday Blitz March 14 Late 2023"]
[White "Kozak, Adam"]
[Black "Yeletsky, Ivan"]
[WhiteFideId "753246"]
[BlackFideId "24180327"]
[WhiteElo "2469"]
[BlackElo "2414"]
[Result "1-0"]
[Round "08"]
[TimeControl "180+2"]
[Date "2023.03.14"]
[WhiteClock "0:00:08"]
[BlackClock "0:00:07"]

1. e4 {[%clk 0:03:00]}  Nc6 {[%clk 0:02:58]} 2. Nf3 {[%clk 0:02:59]}  d6 {[%clk 0:02:58]} 3. d4 {[%clk 0:02:59]}  Nf6 {[%clk 0:02:59]} 4. Nc3 {[%clk 0:02:59]}  g6 {[%clk 0:02:59]} 5. h3 {[%clk 0:02:55]}  Bg7 {[%clk 0:02:59]} 6. Be2 {[%clk 0:02:54]}  O-O {[%clk 0:02:59]} 7. O-O {[%clk 0:02:54]}  a6 {[%clk 0:03:00]} 8. a4 {[%clk 0:02:53]}  e6 {[%clk 0:02:55]} 9. Be3 {[%clk 0:02:41]}  b6 {[%clk 0:02:55]} 10. Qd2 {[%clk 0:02:40]}  Bb7 {[%clk 0:02:55]} 11. Rfd1 {[%clk 0:02:26]}  Ne7 {[%clk 0:02:43]} 12. Bd3 {[%clk 0:02:20]}  c5 {[%clk 0:02:43]} 13. e5 {[%clk 0:02:11]}  dxe5 {[%clk 0:02:23]} 14. dxe5 {[%clk 0:02:10]}  Nd7 {[%clk 0:02:11]} 15. Bxg6 {[%clk 0:01:19]}  Nxg6 {[%clk 0:01:56]} 16. Qxd7 {[%clk 0:01:18]}  Qxd7 {[%clk 0:01:57]} 17. Rxd7 {[%clk 0:01:18]}  Bxf3 {[%clk 0:01:57]} 18. gxf3 {[%clk 0:01:18]}  Nxe5 {[%clk 0:01:58]} 19. Rb7 {[%clk 0:01:18]}  Nxf3+ {[%clk 0:01:56]} 20. Kf1 {[%clk 0:01:17]}  Rfb8 {[%clk 0:01:55]} 21. Rd7 {[%clk 0:01:14]}  Ne5 {[%clk 0:01:52]} 22. Rc7 {[%clk 0:01:07]}  Nc4 {[%clk 0:01:52]} 23. Rb1 {[%clk 0:01:03]}  Be5 {[%clk 0:01:49]} 24. Rd7 {[%clk 0:01:01]}  Rd8 {[%clk 0:01:49]} 25. Rxd8+ {[%clk 0:00:49]}  Rxd8 {[%clk 0:01:49]} 26. Nd1 {[%clk 0:00:46]}  f5 {[%clk 0:01:37]} 27. Bg5 {[%clk 0:00:41]}  Rd7 {[%clk 0:01:35]} 28. Ke2 {[%clk 0:00:11]}  Kf7 {[%clk 0:01:34]} 29. b3 {[%clk 0:00:11]}  Na3 {[%clk 0:01:33]} 30. Rc1 {[%clk 0:00:10]}  Bb2 {[%clk 0:01:33]} 31. Nxb2 {[%clk 0:00:10]}  e5 {[%clk 0:01:19]} 32. Bd2 {[%clk 0:00:08]}  Ke6 {[%clk 0:01:11]} 33. Bc3 {[%clk 0:00:08]}  b5 {[%clk 0:00:51]} 34. Nd3 {[%clk 0:00:08]}  Rd5 {[%clk 0:00:42]} 35. Bb2 {[%clk 0:00:08]}  b4 {[%clk 0:00:38]} 36. Bxa3 {[%clk 0:00:07]}  bxa3 {[%clk 0:00:39]} 37. Ra1 {[%clk 0:00:07]}  c4 {[%clk 0:00:35]} 38. bxc4 {[%clk 0:00:08]}  Rd4 {[%clk 0:00:36]} 39. Rxa3 {[%clk 0:00:08]}  Rxc4 {[%clk 0:00:35]} 40. c3 {[%clk 0:00:08]}  a5 {[%clk 0:00:31]} 41. Nb2 {[%clk 0:00:06]}  Re4+ {[%clk 0:00:29]} 42. Kd2 {[%clk 0:00:07]}  Rf4 {[%clk 0:00:29]} 43. Ke2 {[%clk 0:00:07]}  Re4+ {[%clk 0:00:29]} 44. Kf1 {[%clk 0:00:07]}  Rh4 {[%clk 0:00:26]} 45. c4 {[%clk 0:00:07]}  Rd4 {[%clk 0:00:26]} 46. Rd3 {[%clk 0:00:07]}  Re4 {[%clk 0:00:20]} 47. Re3 {[%clk 0:00:07]}  Rd4 {[%clk 0:00:20]} 48. Rd3 {[%clk 0:00:08]}  Re4 {[%clk 0:00:20]} 49. f3 {[%clk 0:00:09]}  Rh4 {[%clk 0:00:20]} 50. Kg2 {[%clk 0:00:09]}  e4 {[%clk 0:00:10]} 51. Kg3 {[%clk 0:00:09]}  exd3 {[%clk 0:00:04]} 52. Kxh4 {[%clk 0:00:09]}  d2 {[%clk 0:00:05]} 53. Kg3 {[%clk 0:00:08]}  Ke5 {[%clk 0:00:05]} 54. Kf2 {[%clk 0:00:07]}  Kd4 {[%clk 0:00:06]} 55. Ke2 {[%clk 0:00:08]}  Kc3 {[%clk 0:00:07]} 56. c5 {[%clk 0:00:08]} 1-0


[Site "https://www.chess.com"]

[Event "Titled Tuesday Blitz March 14 Late 2023"]
[White "Xu, Yi"]
[Black "Diaz Perez, Michel Alejandro"]
[WhiteFideId "8605564"]
[BlackFideId "3517179"]
[WhiteElo "2471"]
[BlackElo "2333"]
[Result "1-0"]
[Round "08"]
[TimeControl "180+2"]
[Date "2023.03.14"]
[WhiteClock "0:00:12"]
[BlackClock "0:00:04"]

1. e4 {[%clk 0:03:00]}  c6 {[%clk 0:02:54]} 2. d4 {[%clk 0:03:00]}  d5 {[%clk 0:02:55]} 3. e5 {[%clk 0:03:01]}  Bf5 {[%clk 0:02:52]} 4. h4 {[%clk 0:03:01]}  h5 {[%clk 0:02:51]} 5. Bd3 {[%clk 0:03:01]}  Bxd3 {[%clk 0:02:50]} 6. Qxd3 {[%clk 0:03:02]}  e6 {[%clk 0:02:51]} 7. Bg5 {[%clk 0:02:51]}  Qa5+ {[%clk 0:02:51]} 8. Nd2 {[%clk 0:02:47]}  Qa6 {[%clk 0:02:52]} 9. Qb3 {[%clk 0:02:34]}  Nd7 {[%clk 0:02:46]} 10. Ngf3 {[%clk 0:02:33]}  b5 {[%clk 0:02:14]} 11. O-O {[%clk 0:02:31]}  Ne7 {[%clk 0:02:02]} 12. a4 {[%clk 0:02:31]}  Nf5 {[%clk 0:02:02]} 13. axb5 {[%clk 0:02:24]}  Qxb5 {[%clk 0:02:03]} 14. Qxb5 {[%clk 0:02:25]}  cxb5 {[%clk 0:02:03]} 15. Nb3 {[%clk 0:02:16]}  Be7 {[%clk 0:01:51]} 16. Ra6 {[%clk 0:02:11]}  Nb8 {[%clk 0:01:39]} 17. Ra5 {[%clk 0:02:11]}  Bxg5 {[%clk 0:01:25]} 18. hxg5 {[%clk 0:02:10]}  b4 {[%clk 0:01:17]} 19. Rfa1 {[%clk 0:01:47]}  Nc6 {[%clk 0:01:17]} 20. Rc5 {[%clk 0:01:33]}  Kd7 {[%clk 0:01:12]} 21. Ra6 {[%clk 0:01:32]}  Rhc8 {[%clk 0:01:10]} 22. Rb5 {[%clk 0:01:20]}  Rab8 {[%clk 0:01:01]} 23. Rxb8 {[%clk 0:01:15]}  Rxb8 {[%clk 0:01:00]} 24. g6 {[%clk 0:01:13]}  Rb6 {[%clk 0:00:45]} 25. gxf7 {[%clk 0:01:11]}  Ke7 {[%clk 0:00:45]} 26. Rxb6 {[%clk 0:00:31]}  axb6 {[%clk 0:00:46]} 27. c3 {[%clk 0:00:27]}  Kxf7 {[%clk 0:00:41]} 28. Ng5+ {[%clk 0:00:27]}  Ke7 {[%clk 0:00:40]} 29. g3 {[%clk 0:00:23]}  Na5 {[%clk 0:00:21]} 30. Nd2 {[%clk 0:00:21]}  Nc6 {[%clk 0:00:09]} 31. Kf1 {[%clk 0:00:20]}  b5 {[%clk 0:00:06]} 32. Nb3 {[%clk 0:00:18]}  bxc3 {[%clk 0:00:06]} 33. bxc3 {[%clk 0:00:19]}  b4 {[%clk 0:00:07]} 34. cxb4 {[%clk 0:00:15]}  Ncxd4 {[%clk 0:00:08]} 35. Nc5 {[%clk 0:00:14]}  Nc6 {[%clk 0:00:03]} 36. b5 {[%clk 0:00:13]}  Nxe5 {[%clk 0:00:04]} 37. Ngxe6 {[%clk 0:00:12]} 1-0


[Site "https://www.chess.com"]